bitfinex/quotes_ETHUSD_20251201
["timestamp","ask_amount","ask_price","bid_price","bid_amount"]
[1764610384082,6.29630007,2742.3,2742.2,0.001]
[1764610385592,15.97419807,2742.3,2742.2,0.001]
[1764610386830,12.22077507,2742.3,2742.2,0.001]
[1764610387027,16.05777507,2742.3,2742.2,0.001]
[1764610387191,5.33201811,2742.0,2741.9,0.001]
[1764610387392,25.838854,2741.7,2741.6,0.001]
[1764610387608,25.838854,2741.7,2739.1,0.1462825]
[1764610387609,0.36392,2740.3,2739.0,3.65090961]
[1764610387924,7.29900368,2740.1,2738.8,3.65120487]
[1764610388126,3.64950184,2740.1,2738.9,1.09539397]
[1764610388515,0.0997041,2740.0,2738.9,1.09539397]
[1764610388715,0.581,2739.9,2738.9,1.09539397]
[1764610388929,0.581,2739.9,2738.5,4.23259121]
[1764610388930,0.5052081,2739.8,2738.5,4.23259121]
[1764610389250,0.5052081,2739.8,2738.4,0.024935]
[1764610389251,0.36392,2739.5,2738.4,0.024935]
[1764610389390,0.581,2739.4,2738.4,3.67664332]
[1764610389589,0.581,2739.4,2738.5,0.36766433]
[1764610390108,0.405504,2739.8,2738.6,7.30300152]
[1764610390109,0.582,2739.3,2738.6,7.30300152]
[1764610390319,0.582,2739.5,2738.6,7.30300152]
[1764610390633,0.582,2739.5,2738.6,3.65150076]
[1764610390797,0.72559411,2739.6,2738.6,7.30300152]
[1764610390998,1.30759411,2739.7,2738.7,0.76706659]
[1764610391193,1.14739168,2741.2,2738.7,1.4926607]
[1764610391392,7.29474412,2741.7,2739.5,10.55286107]
[1764610391635,0.582,2741.6,2739.6,0.72559411]
[1764610391835,10.94211618,2741.7,2739.7,1.12784552]
[1764610391836,0.36392,2741.0,2739.7,1.12784552]
[1764610392001,3.64714673,2741.9,2739.7,1.12784552]
[1764610392002,0.0997041,2741.3,2739.9,0.72559411]
[1764610392202,14.58736004,2742.1,2739.9,0.72559411]
[1764610392203,0.36392,2741.7,2739.9,0.72559411]
[1764610392404,0.94592,2741.6,2739.9,0.72559411]
[1764610392639,0.582,2741.6,2739.9,0.72559411]
[1764610392802,0.36392,2741.4,2740.0,1.27722407]
[1764610393008,0.582,2741.6,2740.0,1.27722407]
[1764610393009,0.36392,2741.6,2740.0,1.27722407]
[1764610393224,0.72559411,2742.0,2740.0,1.27722407]
[1764610393431,2.11329542,2741.9,2740.1,1.18778582]
[1764610393601,0.36392,2741.6,2740.1,0.78228182]
[1764610394027,0.72559411,2741.4,2740.2,7.2987373]
[1764610394241,0.72559411,2741.4,2740.3,0.80810191]
[1764610394395,3.64763815,2741.5,2740.3,1.53369602]
[1764610394597,6.45,2742.8,2740.3,1.53369602]
[1764610394598,0.36392,2742.2,2740.5,0.72559411]
[1764610394905,0.94592,2741.9,2740.6,1.16839592]
[1764610395109,0.582,2741.9,2740.6,1.16839592]
[1764610395305,7.29235032,2742.6,2740.9,10.55286107]
[1764610395507,0.582,2742.5,2740.9,10.55286107]
[1764610395823,4.01009516,2742.6,2741.0,0.72559411]
[1764610396026,0.582,2742.6,2741.5,7.2952763]
[1764610396426,4.22820632,2742.6,2741.5,7.2952763]
[1764610397012,0.72559411,2742.6,2741.4,4.22973523]
[1764610397208,0.72559411,2742.6,2741.1,1.12784552]
[1764610397209,0.49557594,2742.5,2741.1,1.12784552]
[1764610397412,0.36392,2742.1,2740.6,1.30759411]
[1764610397653,0.582,2742.0,2740.6,0.582]
[1764610397842,0.405504,2741.9,2740.6,0.582]
[1764610398013,0.405504,2741.5,2739.8,11.64980334]
[1764610398214,0.582,2741.4,2739.9,5.39674856]
[1764610398535,0.94592,2741.4,2740.0,0.72559411]
[1764610399241,0.94592,2741.4,2741.2,0.001]
[1764610399412,0.20770181,2741.3,2741.2,0.001]
[1764610400246,3.64726875,2741.8,2741.2,0.001]
[1764610400410,0.36392,2742.3,2741.2,0.001]
[1764610400616,0.582,2742.2,2741.2,0.001]
[1764610401335,0.94592,2742.2,2741.2,0.001]
[1764610401533,0.405504,2742.1,2741.2,0.001]
[1764610401934,0.36392,2741.7,2741.2,0.001]
[1764610402243,7.8770102,2741.6,2741.2,0.001]
[1764610403513,4.2295051,2741.6,2741.2,0.001]
[1764610404141,8.33635271,2741.6,2741.2,0.001]
[1764610404666,0.0997041,2741.4,2741.2,0.001]
[1764610405076,0.36392,2741.5,2741.2,0.001]
[1764610405578,8.70027271,2741.6,2741.2,0.001]
[1764610405782,0.87002727,2741.5,2741.2,0.001]
[1764610406283,3.64777121,2741.4,2741.2,0.001]
[1764610407181,0.582,2741.6,2741.2,0.001]
[1764610407341,0.36392,2742.0,2741.2,0.001]
[1764610407543,4.21987355,2743.0,2741.2,0.001]
[1764610407544,0.0997041,2742.2,2741.2,0.001]
[1764610407748,0.582,2742.1,2741.2,0.001]
[1764610407978,7.29291138,2742.4,2741.2,0.72659411]
[1764610407979,3.64644107,2742.4,2741.2,0.72659411]
[1764610408283,0.002,2742.6,2741.4,10.94331363]
[1764610408284,1.30959411,2742.6,2741.4,10.94331363]
[1764610408485,0.002,2742.6,2741.6,10.55286107]
[1764610408770,0.002,2742.6,2741.7,1.63728611]
[1764610409343,0.002,2742.6,2741.7,2.36288022]
[1764610410498,0.002,2742.6,2741.7,6.0102156]
[1764610410667,0.002,2742.6,2741.7,13.30495972]
[1764610411245,0.002,2742.6,2741.7,9.65758766]
[1764610411441,0.002,2742.6,2741.8,3.11138726]
[1764610412377,0.582,2742.5,2741.3,3.64790427]
[1764610412543,0.582,2742.5,2741.3,7.29580854]
[1764610412741,0.582,2742.5,2741.4,0.72559411]
[1764610413399,0.002,2742.6,2741.4,0.72559411]
[1764610413550,0.584,2742.6,2741.4,11.27845518]
[1764610413750,0.584,2742.6,2741.5,2.2222168]
[1764610413984,0.002,2742.6,2741.5,2.2222168]
[1764610414147,0.583,2742.6,2741.5,2.2222168]
[1764610414548,7.29261622,2742.5,2741.6,3.6475051]
[1764610415392,3.64630811,2742.5,2741.6,7.2950102]
[1764610415595,3.64630811,2742.5,2741.7,0.9517227]
[1764610415767,7.29261622,2742.5,2741.7,0.9517227]
[1764610415962,7.29261622,2742.5,2741.5,5.86978567]
[1764610416163,7.87361622,2742.5,2741.5,3.64756887]
[1764610416372,7.29261622,2742.5,2741.4,4.37323533]
[1764610416566,7.29314808,2742.3,2741.4,8.02100654]
[1764610416767,7.29314808,2742.3,2741.4,4.37323533]
[1764610417178,7.29314808,2742.3,2741.4,8.02100654]
[1764610417382,0.581,2742.4,2741.5,0.80210065]
[1764610417777,0.002,2742.5,2741.5,0.80210065]
[1764610418914,0.002,2742.5,2741.9,10.55286107]
[1764610419201,0.002,2742.5,2742.0,0.581]
[1764610419500,0.002,2742.5,2742.1,1.11338611]
[1764610421269,0.002,2742.5,2742.2,7.29341404]
[1764610422065,0.002,2742.5,2742.4,10.55286107]
[1764610423286,0.002,2742.5,2742.4,14.19930214]
[1764610424531,0.002,2742.5,2742.4,14.78030214]
[1764610424704,0.002,2742.5,2742.4,16.98765873]
[1764610425647,0.002,2742.5,2742.4,6.43479766]
[1764610425795,0.002,2742.5,2742.4,0.581]
[1764610426140,0.002,2742.5,2742.4,4.22744107]
[1764610426341,0.002,2742.5,2742.4,3.64644107]
[1764610427394,0.002,2742.5,2742.1,1.30659411]
[1764610427619,0.002,2742.5,2742.1,2.49253963]
[1764610427926,0.002,2742.5,2742.2,3.64662745]
[1764610428296,0.002,2742.6,2742.2,3.64662745]
[1764610428297,0.002,2742.6,2742.4,0.405504]
[1764610428497,0.002,2742.6,2742.5,12.26495918]
[1764610430022,0.002,2742.6,2742.5,15.91126729]
[1764610430228,0.002,2742.6,2742.5,17.8670364]
[1764610431127,0.002,2742.6,2742.5,6.32767133]
[1764610431301,0.002,2742.6,2742.5,4.37190222]
[1764610431505,0.002,2742.6,2742.5,0.72559411]
[1764610431695,0.002,2742.6,2742.5,4.37190222]
[1764610432199,0.002,2742.6,2742.5,0.72559411]
[1764610432395,0.002,2742.6,2742.5,4.37190222]
[1764610433298,0.002,2742.6,2742.5,5.23183472]
[1764610434811,0.002,2742.6,2742.5,5.23283472]
[1764610437035,0.002,2742.6,2742.5,5.63833872]
[1764610437337,0.002,2742.7,2742.6,11.27845518]
[1764610438134,0.002,2742.7,2742.5,8.15354872]
[1764610438310,0.002,2742.7,2742.5,7.29361622]
[1764610439114,0.002,2742.7,2742.5,0.001]
[1764610446340,0.002,2742.7,2742.6,0.72559411]
[1764610446527,0.002,2742.7,2742.5,3.64730811]
[1764610446848,0.002,2742.7,2742.5,0.001]
[1764610447544,0.36392,2742.6,2742.5,0.001]
[1764610448446,4.73568927,2742.6,2742.5,0.001]
[1764610448750,5.57426397,2742.6,2742.5,0.001]
[1764610450045,3.64805776,2742.7,2742.5,0.001]
[1764610450046,0.002,2742.7,2742.5,0.001]
[1764610452415,0.002,2742.7,2742.5,7.29361622]
[1764610456352,0.002,2742.7,2742.5,3.64730811]
[1764610456651,0.002,2742.7,2742.5,7.29361622]
[1764610456840,0.002,2742.7,2742.6,0.78746162]
[1764610458746,0.002,2742.7,2742.6,4.43363678]
[1764610458951,0.002,2742.7,2742.5,3.64730811]
[1764610458952,0.002,2742.7,2742.5,0.001]
[1764610464750,3.32052221,2742.6,2742.5,0.001]
[1764610464931,4.87697737,2742.6,2742.5,0.001]
[1764610465131,5.45797737,2742.6,2742.5,0.001]
[1764610465356,12.53731337,2742.6,2742.5,0.001]
[1764610465658,9.08689448,2742.6,2742.5,0.001]
[1764610466060,8.50589448,2742.6,2742.5,0.001]
[1764610466238,9.77230548,2742.6,2742.5,0.001]
[1764610466645,28.25914448,2742.6,2742.5,0.001]
[1764610467342,28.25914448,2742.6,2742.2,0.001]
[1764610467343,0.405504,2742.5,2742.2,0.001]
[1764610467552,26.0163017,2742.6,2742.2,0.001]
[1764610467553,3.37288621,2742.3,2742.2,0.001]
[1764610467762,1.81180221,2742.3,2742.2,0.001]
[1764610467969,0.405504,2742.4,2742.2,0.001]
[1764610468140,0.94492,2742.3,2742.2,0.001]
[1764610469356,4.73608815,2742.3,2742.2,0.001]
[1764610469559,5.79142231,2742.3,2742.2,0.001]
[1764610470073,5.99083052,2742.3,2742.2,0.001]
[1764610470245,5.21042231,2742.3,2742.2,0.001]
[1764610470450,5.79142231,2742.3,2742.2,0.001]
[1764610470844,6.29663041,2742.3,2742.2,0.001]
[1764610471546,5.71563041,2742.3,2742.2,0.001]
[1764610471754,6.29663041,2742.3,2742.2,0.001]
[1764610471950,5.71563041,2742.3,2742.2,0.001]
[1764610472254,6.29663041,2742.3,2742.2,0.001]
[1764610474976,14.13459841,2742.3,2742.2,0.001]
[1764610475157,12.44247741,2742.3,2742.2,0.001]
[1764610475348,10.00272741,2742.3,2742.2,0.001]
[1764610476068,6.29663041,2742.3,2742.2,0.001]
[1764610476256,15.62170141,2742.3,2742.2,0.001]
[1764610476649,11.96662141,2742.3,2742.2,0.001]
[1764610476850,9.05915141,2742.3,2742.2,0.001]
[1764610477374,19.46629241,2742.3,2742.2,0.001]
[1764610478282,25.36046241,2742.3,2742.2,0.001]
[1764610478778,31.81046241,2742.3,2742.2,0.001]
[1764610478978,20.42585741,2742.3,2742.2,0.001]
[1764610479181,25.53858241,2742.3,2742.2,0.001]
[1764610480264,19.29803841,2742.3,2742.2,0.001]
[1764610480853,18.71703841,2742.3,2742.2,0.001]
[1764610481055,16.00263041,2742.3,2742.2,0.001]
[1764610481249,12.74663041,2742.3,2742.2,0.001]
[1764610482684,12.16563041,2742.3,2742.2,0.001]
[1764610482980,12.74663041,2742.3,2742.2,0.001]
[1764610483480,12.16563041,2742.3,2742.2,0.001]
[1764610483681,12.74763041,2742.3,2742.2,0.001]
[1764610484081,13.01084631,2742.3,2742.2,0.001]
[1764610485282,12.42984631,2742.3,2742.2,0.001]
[1764610485452,11.22767215,2742.3,2742.2,0.001]
[1764610485653,12.17359215,2742.3,2742.2,0.001]
[1764610486885,5.35967215,2742.3,2742.2,0.001]
[1764610488178,5.72359215,2742.3,2742.2,0.001]
[1764610488350,26.95922943,2742.3,2742.2,0.001]
[1764610488549,29.18681872,2742.3,2742.2,0.001]
[1764610488763,26.23463272,2742.3,2742.2,0.001]
[1764610488961,24.50586172,2742.3,2742.2,0.001]
[1764610489171,12.38417444,2742.3,2742.2,0.001]
[1764610489383,5.72359215,2742.3,2742.2,0.001]
[1764610489678,9.74035415,2742.3,2742.2,0.001]
[1764610489879,5.72359215,2742.3,2742.2,0.001]
[1764610490179,9.78235415,2742.3,2742.2,0.001]
[1764610490770,5.72259215,2742.3,2742.2,0.001]
[1764610490970,15.15006271,2742.3,2742.2,0.001]
[1764610491999,13.22626571,2742.3,2742.2,0.001]
[1764610492202,8.94964771,2742.3,2742.2,0.001]
[1764610492498,6.65969671,2742.3,2742.2,0.001]
[1764610493803,6.07869671,2742.3,2742.2,0.001]
[1764610494012,6.65969671,2742.3,2742.2,0.001]
[1764610496382,34.96645299,2742.3,2742.2,0.001]
[1764610496876,23.97787709,2742.3,2742.2,0.001]
[1764610497299,30.10011409,2742.3,2742.2,0.001]
[1764610497601,30.68111409,2742.3,2742.2,0.001]
[1764610498508,32.06451809,2742.3,2742.2,0.001]
[1764610498706,27.33744409,2742.3,2742.2,0.001]
[1764610498878,27.91844409,2742.3,2742.2,0.001]
[1764610499407,27.57878009,2742.3,2742.2,0.001]
[1764610500612,41.80522609,2742.3,2742.2,0.001]
[1764610501477,26.51444811,2742.2,2741.9,0.001]
[1764610501681,7.75861121,2741.7,2741.6,0.001]
[1764610501883,1.81180221,2741.7,2741.6,0.001]
[1764610502503,14.87723327,2741.7,2741.6,0.001]
[1764610502812,15.81433783,2741.7,2741.6,0.001]
[1764610503178,21.44160489,2741.7,2741.5,0.001]
[1764610503384,26.25023221,2741.6,2741.5,0.001]
[1764610503611,12.49893021,2741.6,2741.5,0.001]
[1764610503798,14.08696274,2741.6,2741.5,0.001]
[1764610504690,27.80407384,2741.6,2741.5,0.001]
[1764610504891,26.49407384,2741.6,2741.5,0.001]
[1764610505093,17.55661784,2741.6,2741.5,0.001]
[1764610505310,16.04349884,2741.6,2741.5,0.001]
[1764610505699,10.91663284,2741.6,2741.5,0.001]
[1764610505898,11.49863284,2741.6,2741.5,0.001]
[1764610506698,15.99057984,2741.6,2741.5,0.001]
[1764610507408,15.99057984,2741.6,2741.3,0.001]
[1764610507409,0.405504,2741.5,2741.3,0.001]
[1764610507607,34.72797543,2741.4,2741.3,0.001]
[1764610507919,33.05272943,2741.4,2741.3,0.001]
[1764610508518,16.86500443,2741.4,2741.3,0.001]
[1764610508690,15.80330343,2741.4,2741.3,0.001]
[1764610509105,13.54554543,2741.4,2741.3,0.001]
[1764610509621,14.12754543,2741.4,2741.3,0.001]
[1764610510115,13.54554543,2741.4,2741.3,0.001]
[1764610510418,4.22977121,2741.4,2741.3,0.001]
[1764610510624,4.95536532,2741.4,2741.3,0.001]
[1764610511124,4.22977121,2741.4,2741.3,0.001]
[1764610511714,4.95536532,2741.4,2741.3,0.001]
[1764610511921,5.31928532,2741.4,2741.3,0.001]
[1764610512691,4.95536532,2741.4,2741.3,0.001]
[1764610513319,5.31928532,2741.4,2741.3,0.001]
[1764610514025,4.95536532,2741.4,2741.3,0.001]
[1764610515591,3.64657404,2742.3,2741.3,0.001]
[1764610515800,7.29319873,2742.3,2741.3,0.001]
[1764610516030,7.29368002,2742.1,2741.3,0.001]
[1764610516231,0.002,2742.7,2741.3,0.001]
[1764610516446,3.6483601,2742.5,2741.3,0.001]
[1764610516740,0.002,2742.5,2741.3,0.72659411]
[1764610516890,0.002,2742.5,2741.4,1.12926699]
[1764610517290,0.002,2742.5,2742.2,10.56507575]
[1764610517499,0.002,2742.5,2741.8,0.72559411]
[1764610517699,0.002,2742.5,2741.7,0.72559411]
[1764610517920,0.002,2742.5,2741.3,0.583]
[1764610517921,0.002,2742.5,2741.4,0.405504]
[1764610518120,0.002,2742.5,2741.3,0.583]
[1764610518121,0.002,2742.5,2741.6,0.72559411]
[1764610518323,0.002,2742.5,2741.7,0.80208704]
[1764610520236,0.002,2742.5,2741.8,7.29447808]
[1764610523340,0.002,2742.5,2742.2,0.405504]
[1764610523492,0.002,2742.5,2742.2,1.71209811]
[1764610523697,0.002,2742.5,2742.2,1.30659411]
[1764610523998,0.002,2742.5,2742.3,1.18716699]
[1764610524417,0.002,2742.5,2742.4,3.64644107]
[1764610524928,0.002,2742.5,2742.3,1.18716699]
[1764610525112,0.002,2742.5,2742.3,3.64655805]
[1764610525425,0.002,2742.5,2742.3,7.29313209]
[1764610526013,0.002,2742.5,2742.4,1.13109811]
[1764610526224,0.002,2742.5,2742.4,1.27719841]
[1764610526622,0.002,2742.7,2742.6,10.97057975]
[1764610526815,0.002,2742.7,2742.6,13.60968949]
[1764610527122,0.002,2742.8,2742.7,0.72559411]
[1764610527521,3.5321598,2744.4,2742.8,0.405504]
[1764610527827,0.57177909,2744.6,2743.3,0.405504]
[1764610527828,4.2153057,2744.6,2743.3,0.405504]
[1764610528005,4.2153057,2744.6,2742.9,0.581]
[1764610528006,10.93070424,2744.6,2742.9,0.581]
[1764610528206,0.36392,2744.4,2742.9,0.581]
[1764610528606,7.28783296,2744.3,2743.1,0.72559411]
[1764610528806,7.28783296,2744.3,2743.2,0.8016881]
[1764610529926,3.64391648,2744.3,2743.2,0.8016881]
[1764610530136,3.64384549,2744.4,2743.2,0.8016881]
[1764610530339,0.581,2744.5,2743.2,0.8016881]
[1764610530501,0.002,2744.7,2743.4,10.9353357]
[1764610530703,0.583,2744.7,2743.4,10.9353357]
[1764610530902,0.002,2744.7,2743.5,0.581]
[1764610531300,0.002,2744.7,2743.5,1.30659411]
[1764610531805,0.1017041,2744.7,2743.5,1.30659411]
[1764610532133,0.0997041,2744.5,2743.6,0.4951706]
[1764610532603,7.2875674,2744.4,2743.5,0.581]
[1764610533308,7.2875674,2744.4,2743.5,4.22596418]
[1764610533507,7.2875674,2744.4,2743.5,7.87094322]
[1764610533703,3.6437837,2744.4,2743.5,7.87094322]
[1764610533928,7.2875674,2744.4,2743.6,0.85965373]
[1764610534702,7.2875674,2744.4,2743.6,4.50449588]
[1764610535432,7.2875674,2744.4,2743.6,8.14934206]
[1764610535636,7.2875674,2744.4,2743.6,4.50449588]
[1764610535934,7.2875674,2744.4,2743.7,0.873043]
[1764610536132,3.6437837,2744.4,2743.7,0.873043]
[1764610536436,4.22470785,2744.5,2743.7,0.873043]
[1764610536934,0.72759411,2744.7,2743.8,7.289161]
[1764610537137,0.002,2744.7,2743.8,10.9337415]
[1764610537435,0.002,2744.7,2744.1,10.56507575]
[1764610537752,0.002,2744.7,2744.2,0.581]
[1764610538807,0.002,2744.7,2744.3,3.64391648]
[1764610539010,0.002,2744.7,2744.3,7.28783296]
[1764610539225,0.002,2744.7,2744.3,3.64391648]
[1764610539435,0.002,2744.7,2744.4,0.78689227]
[1764610539641,0.002,2744.7,2744.2,0.581]
[1764610539939,0.002,2744.7,2743.9,0.72559411]
[1764610540334,0.002,2744.7,2743.8,1.30659411]
[1764610540924,0.002,2744.7,2744.0,0.72559411]
[1764610541741,0.002,2744.7,2744.1,0.405504]
[1764610541935,0.002,2744.7,2744.2,0.581]
[1764610543018,0.002,2744.7,2744.3,7.28783296]
[1764610543217,0.002,2744.7,2744.4,0.7868833]
[1764610545128,0.002,2744.7,2744.3,3.64385129]
[1764610546052,0.002,2744.7,2744.2,7.86909852]
[1764610546644,0.002,2744.7,2744.2,11.51314778]
[1764610547020,0.002,2744.7,2744.2,7.86909852]
[1764610547991,0.002,2744.7,2744.6,10.56507575]
[1764610548264,0.002,2744.7,2744.6,13.33368143]
[1764610549131,0.002,2744.7,2744.6,16.97719961]
[1764610552264,0.002,2745.0,2744.6,16.97719961]
[1764610552468,0.002,2745.0,2744.7,1.13109811]
[1764610553061,0.002,2745.0,2744.8,7.28650538]
[1764610553235,0.002,2745.0,2744.9,1.97285846]
[1764610554465,0.002,2745.0,2744.9,5.61597842]
[1764610554843,0.002,2745.3,2744.9,5.61597842]
[1764610554844,0.002,2745.3,2744.9,12.90221834]
[1764610555050,0.002,2745.3,2745.2,11.69617386]
[1764610555244,0.002,2745.3,2745.2,12.92389125]
[1764610556041,0.002,2745.6,2745.3,1.13109811]
[1764610556350,0.002,2745.6,2745.2,12.92389125]
[1764610556351,0.002,2745.6,2745.5,4.77342191]
[1764610557172,0.002,2747.1,2745.7,0.405504]
[1764610557375,0.002,2747.1,2746.5,0.405504]
[1764610557673,0.002,2747.1,2746.6,1.67705798]
[1764610558250,0.002,2747.1,2746.8,7.28119994]
[1764610558445,0.002,2747.1,2746.9,11.29066986]
[1764610558643,0.002,2747.1,2747.0,0.58]
[1764610560474,0.002,2747.1,2747.0,4.62583891]
[1764610560647,0.002,2747.1,2747.0,7.23457038]
[1764610561083,0.002,2747.4,2747.0,7.23457038]
[1764610561084,0.002,2747.4,2747.2,0.405504]
[1764610561456,0.002,2747.7,2747.6,11.69617386]
[1764610561775,0.002,2747.7,2747.6,12.27617386]
[1764610561982,0.002,2747.7,2747.6,13.50379125]
[1764610562288,0.002,2747.7,2747.6,17.14333121]
[1764610562660,0.002,2747.7,2747.6,6.57825546]
[1764610562866,0.002,2747.7,2747.1,14.20522003]
[1764610563067,0.002,2747.7,2747.4,0.58]
[1764610564380,0.002,2747.7,2747.5,3.63967242]
[1764610564754,0.002,2747.7,2747.5,7.27934484]
[1764610565049,0.002,2747.7,2747.4,0.58]
[1764610565642,0.002,2747.7,2746.8,3.64052212]
[1764610565889,0.002,2747.7,2746.9,0.94405221]
[1764610566387,0.002,2747.7,2746.6,0.14588557]
[1764610566388,7.27907992,2747.6,2746.6,0.14588557]
[1764610566545,1.08951411,2747.5,2746.1,10.56507575]
[1764610566749,0.72559411,2747.5,2746.3,0.72559411]
[1764610566947,0.405504,2747.4,2745.9,1.09439723]
[1764610567185,1.5699254,2747.4,2746.0,0.58]
[1764610567559,0.36392,2747.1,2746.0,0.58]
[1764610569366,1.08951411,2746.9,2745.7,7.86410103]
[1764610569562,0.36392,2746.7,2745.7,4.22204254]
[1764610570083,1.08951411,2746.9,2745.7,4.22204254]
[1764610570382,0.36392,2746.6,2745.7,0.58]
[1764610571188,0.36392,2746.6,2745.6,0.001]
[1764610571483,0.36392,2746.6,2745.6,3.64318979]
[1764610571691,0.405504,2746.7,2745.6,0.001]
[1764610572055,0.36392,2746.6,2745.6,0.001]
[1764610572254,0.36392,2746.6,2745.6,0.78766953]
[1764610572491,0.72559411,2746.4,2745.6,4.42985108]
[1764610573396,0.72559411,2746.4,2745.6,0.78766953]
[1764610573596,0.72559411,2746.4,2745.6,4.4298382]
[1764610574098,0.72559411,2746.4,2745.6,0.78766953]
[1764610574403,7.28252556,2746.3,2745.6,0.001]
[1764610574579,10.92378834,2746.3,2745.6,0.001]
[1764610574774,0.72559411,2746.2,2745.6,0.001]
[1764610574976,0.0997041,2746.0,2745.6,0.001]
[1764610575178,0.36392,2745.8,2745.6,0.001]
[1764610575373,1.349424,2745.7,2745.6,0.001]
[1764610576198,0.94392,2745.7,2745.6,0.001]
[1764610576499,5.3115726,2745.7,2745.6,0.001]
[1764610576730,6.02255023,2745.7,2745.6,0.001]
[1764610577072,6.42805423,2745.7,2745.6,0.001]
[1764610579901,5.48413423,2745.7,2745.6,0.001]
[1764610580205,6.42805423,2745.7,2745.6,0.001]
[1764610580411,5.84805423,2745.7,2745.6,0.001]
[1764610580599,5.3115726,2745.7,2745.6,0.001]
[1764610581476,4.3676526,2745.7,2745.6,0.001]
[1764610581676,4.9476526,2745.7,2745.6,0.001]
[1764610583089,4.3676526,2745.7,2745.6,0.001]
[1764610584634,3.64152798,2746.1,2745.6,0.001]
[1764610584781,7.28305596,2746.1,2745.6,0.001]
[1764610584979,6.5497041,2746.7,2745.6,0.001]
[1764610585216,7.86173012,2746.6,2745.6,0.001]
[1764610585414,0.72559411,2746.5,2745.6,0.001]
[1764610585618,11.50259518,2746.6,2745.6,0.001]
[1764610585825,0.36392,2746.3,2745.6,0.001]
[1764610586183,1.13109811,2746.5,2745.6,0.001]
[1764610586386,0.36392,2746.4,2745.6,0.001]
[1764610586595,7.28252556,2746.3,2745.6,0.001]
[1764610587480,0.72559411,2746.2,2745.6,0.001]
[1764610588082,1.30559411,2746.2,2745.6,0.001]
[1764610588502,0.72559411,2746.2,2745.6,0.001]
[1764610588809,3.64152798,2746.1,2745.6,0.001]
[1764610589014,7.28305596,2746.1,2745.6,0.001]
[1764610590481,3.64152798,2746.1,2745.6,0.001]
[1764610590916,7.28305596,2746.1,2745.6,0.001]
[1764610591330,3.64152798,2746.1,2745.6,0.001]
[1764610591494,0.72559411,2746.1,2745.6,0.001]
[1764610591816,3.64143956,2746.2,2745.6,0.001]
[1764610593889,3.64126278,2746.3,2745.6,0.001]
[1764610595718,7.28252556,2746.3,2745.6,0.001]
[1764610596102,3.64120573,2746.4,2745.6,0.001]
[1764610596416,7.70453203,2746.4,2745.6,0.001]
[1764610596783,8.28453203,2746.4,2745.6,0.001]
[1764610597226,7.70453203,2746.4,2745.6,0.001]
[1764610597387,7.86241146,2746.4,2745.6,0.001]
[1764610601032,0.36392,2747.3,2745.6,10.373252]
[1764610601200,0.58,2747.2,2745.6,10.373252]
[1764610601525,0.72559411,2747.0,2745.7,10.92617547]
[1764610601734,0.72559411,2747.0,2745.8,2.12994275]
[1764610602400,0.58,2746.9,2745.8,2.12994275]
[1764610602605,0.405504,2746.8,2745.6,0.001]
[1764610602914,0.36392,2746.4,2745.6,0.001]
[1764610603127,0.58,2746.3,2745.6,0.001]
[1764610603306,7.28279076,2746.2,2745.6,0.001]
[1764610603509,3.64139538,2746.2,2745.6,0.001]
[1764610603704,3.64139538,2746.2,2745.7,0.42243175]
[1764610603903,7.28279076,2746.2,2745.6,0.001]
[1764610604103,0.0997041,2745.9,2745.6,0.001]
[1764610604304,0.36392,2745.9,2745.6,0.001]
[1764610604548,0.58,2745.8,2745.6,0.001]
[1764610605042,0.94392,2745.8,2745.6,0.001]
[1764610605242,0.0997041,2745.7,2745.6,0.001]
[1764610605444,4.14726659,2745.7,2745.6,0.001]
[1764610605746,4.8728607,2745.7,2745.6,0.001]
[1764610605949,5.78234088,2745.7,2745.6,0.001]
[1764610609539,12.23234088,2745.7,2745.6,0.001]
[1764610611161,12.49655678,2745.7,2745.6,0.001]
[1764610613134,12.47205678,2745.7,2745.6,0.001]
[1764610615333,10.06755849,2745.7,2745.6,0.001]
[1764610615654,10.64755849,2745.7,2745.6,0.001]
[1764610616045,10.06755849,2745.7,2745.6,0.001]
[1764610616370,6.45,2745.7,2745.6,0.001]
[1764610616663,7.64644556,2746.3,2745.6,0.001]
[1764610616856,0.58,2746.2,2745.6,0.001]
[1764610617058,0.0997041,2746.1,2745.6,0.001]
[1764610618157,7.28332118,2746.0,2745.6,0.001]
[1764610618359,0.0997041,2745.8,2745.6,0.001]
[1764610618661,0.58,2745.7,2745.6,0.001]
[1764610619668,0.72559411,2745.9,2745.6,0.001]
[1764610619881,0.58,2745.8,2745.6,0.001]
[1764610620037,0.72559411,2745.9,2745.6,0.001]
[1764610620237,3.64192585,2745.8,2745.6,0.001]
[1764610620475,0.58,2746.0,2745.6,0.001]
[1764610622168,0.72559411,2746.1,2745.6,0.001]
[1764610622481,4.22183977,2745.9,2745.6,0.001]
[1764610623338,7.86367954,2745.9,2745.6,0.001]
[1764610623573,8.7226069,2745.9,2745.6,0.001]
[1764610623867,9.0865269,2745.9,2745.6,0.001]
[1764610624450,7.86367954,2745.9,2745.6,0.001]
[1764610624650,3.64183977,2745.9,2745.6,0.001]
[1764610624859,7.86367954,2745.9,2745.6,0.001]
[1764610625367,0.36392,2745.8,2745.6,0.001]
[1764610625666,8.22759954,2745.9,2745.6,0.001]
[1764610626276,3.64183977,2745.9,2745.6,0.001]
[1764610626573,4.21134639,2747.3,2745.6,0.001]
[1764610626749,0.002,2747.4,2745.9,10.372252]